[Event "Titled Tuesday Blitz May 2 Early 2023"]
[White "Xie, Bryan"]
[Black "Perez Gormaz, Matias"]
[WhiteFideId "30941296"]
[BlackFideId "3406342"]
[WhiteElo "2033"]
[BlackElo "2362"]
[Result "1-0"]
[Round "02"]
[TimeControl "180+2"]
[Date "2023.05.02"]
[WhiteClock "0:00:05"]
[BlackClock "0:00:04"]

1. d4 {[%clk 0:02:54]}  Nf6 {[%clk 0:02:59]} 2. Nf3 {[%clk 0:02:55]}  d5 {[%clk 0:02:58]} 3. Bf4 {[%clk 0:02:55]}  e6 {[%clk 0:02:55]} 4. e3 {[%clk 0:02:56]}  c5 {[%clk 0:02:55]} 5. c3 {[%clk 0:02:54]}  Nc6 {[%clk 0:02:55]} 6. Nbd2 {[%clk 0:02:54]}  Bd6 {[%clk 0:02:56]} 7. Bg3 {[%clk 0:02:50]}  O-O {[%clk 0:02:55]} 8. Bd3 {[%clk 0:02:50]}  b6 {[%clk 0:02:55]} 9. e4 {[%clk 0:02:45]}  Be7 {[%clk 0:02:54]} 10. e5 {[%clk 0:02:44]}  Nd7 {[%clk 0:02:38]} 11. O-O {[%clk 0:02:04]}  cxd4 {[%clk 0:02:35]} 12. cxd4 {[%clk 0:02:04]}  Nb4 {[%clk 0:02:35]} 13. Bb1 {[%clk 0:01:58]}  Ba6 {[%clk 0:02:35]} 14. Re1 {[%clk 0:01:58]}  Nd3 {[%clk 0:02:34]} 15. Re3 {[%clk 0:01:43]}  N3c5 {[%clk 0:02:06]} 16. dxc5 {[%clk 0:01:41]}  bxc5 {[%clk 0:02:04]} 17. Qc2 {[%clk 0:01:16]}  g6 {[%clk 0:02:03]} 18. b3 {[%clk 0:01:08]}  Rb8 {[%clk 0:02:02]} 19. Re1 {[%clk 0:00:56]}  Bb5 {[%clk 0:01:51]} 20. h3 {[%clk 0:00:50]}  a5 {[%clk 0:01:51]} 21. a4 {[%clk 0:00:48]}  Bc6 {[%clk 0:01:50]} 22. Qd3 {[%clk 0:00:45]}  Rb4 {[%clk 0:01:46]} 23. Bc2 {[%clk 0:00:39]}  Qb8 {[%clk 0:01:37]} 24. Rac1 {[%clk 0:00:36]}  Rc8 {[%clk 0:01:35]} 25. Bd1 {[%clk 0:00:29]}  Bf8 {[%clk 0:01:33]} 26. Nf1 {[%clk 0:00:21]}  Bh6 {[%clk 0:01:29]} 27. N3d2 {[%clk 0:00:20]}  Rd4 {[%clk 0:01:25]} 28. Qc2 {[%clk 0:00:19]}  Qb4 {[%clk 0:01:20]} 29. Re2 {[%clk 0:00:16]}  Rb8 {[%clk 0:01:14]} 30. Qc3 {[%clk 0:00:15]}  Qb6 {[%clk 0:00:57]} 31. Ne3 {[%clk 0:00:12]}  Bg7 {[%clk 0:00:48]} 32. Nf3 {[%clk 0:00:12]}  Re4 {[%clk 0:00:44]} 33. Bc2 {[%clk 0:00:12]}  d4 {[%clk 0:00:43]} 34. Qc4 {[%clk 0:00:04]}  Qb7 {[%clk 0:00:27]} 35. Bxe4 {[%clk 0:00:04]}  Bxe4 {[%clk 0:00:28]} 36. Nf1 {[%clk 0:00:01]}  Bd5 {[%clk 0:00:29]} 37. Qd3 {[%clk 0:00:01]}  h6 {[%clk 0:00:23]} 38. N1d2 {[%clk 0:00:02]}  Qa8 {[%clk 0:00:16]} 39. Rb1 {[%clk 0:00:02]}  Rb4 {[%clk 0:00:15]} 40. Nc4 {[%clk 0:00:03]}  Qa6 {[%clk 0:00:16]} 41. Nfd2 {[%clk 0:00:03]}  h5 {[%clk 0:00:15]} 42. Qc2 {[%clk 0:00:03]}  Bh6 {[%clk 0:00:15]} 43. Ree1 {[%clk 0:00:03]}  Qb7 {[%clk 0:00:11]} 44. Red1 {[%clk 0:00:03]}  Bxg2 {[%clk 0:00:11]} 45. Qd3 {[%clk 0:00:03]}  Bxh3 {[%clk 0:00:11]} 46. Ne4 {[%clk 0:00:02]}  Bf5 {[%clk 0:00:09]} 47. Ncd6 {[%clk 0:00:03]}  Qd5 {[%clk 0:00:09]} 48. Nxf5 {[%clk 0:00:03]}  gxf5 {[%clk 0:00:08]} 49. Nf6+ {[%clk 0:00:03]}  Nxf6 {[%clk 0:00:09]} 50. exf6 {[%clk 0:00:04]}  f4 {[%clk 0:00:05]} 51. Bh4 {[%clk 0:00:04]}  f3 {[%clk 0:00:01]} 52. Kh2 {[%clk 0:00:05]}  e5 {[%clk 0:00:02]} 53. Rg1+ {[%clk 0:00:04]}  Kf8 {[%clk 0:00:02]} 54. Qf5 {[%clk 0:00:05]}  Bf4+ {[%clk 0:00:03]} 55. Kh3 {[%clk 0:00:05]}  Ke8 {[%clk 0:00:04]} 56. Rg8# {[%clk 0:00:05]} 1-0


[Site "https://www.chess.com"]

[Event "Titled Tuesday Blitz May 2 Early 2023"]
[White "Levitskiy, Andrey"]
[Black "Van Foreest, Machteld"]
[WhiteFideId "14132885"]
[BlackFideId "1051563"]
[WhiteElo "2341"]
[BlackElo "2018"]
[Result "1-0"]
[Round "02"]
[TimeControl "180+2"]
[Date "2023.05.02"]
[WhiteClock "0:00:00"]
[BlackClock "0:00:00"]

1. e4 {[%clk 0:00:01]}  c5 {[%clk 0:00:01]} 2. Nf3 {[%clk 0:00:01]}  e6 {[%clk 0:00:01]} 3. d4 {[%clk 0:00:01]}  cxd4 {[%clk 0:00:01]} 4. Nxd4 {[%clk 0:00:01]}  Nf6 {[%clk 0:00:01]} 5. Nc3 {[%clk 0:00:01]}  Nc6 {[%clk 0:00:01]} 6. Ndb5 {[%clk 0:00:01]}  Bc5 {[%clk 0:00:01]} 7. Bf4 {[%clk 0:00:01]}  O-O {[%clk 0:00:01]} 8. Bc7 {[%clk 0:00:01]}  Qe7 {[%clk 0:00:01]} 9. Bd6 {[%clk 0:00:01]}  Bxd6 {[%clk 0:00:01]} 10. Qxd6 {[%clk 0:00:01]}  Qd8 {[%clk 0:00:01]} 11. O-O-O {[%clk 0:00:01]}  a6 {[%clk 0:00:01]} 12. Nd4 {[%clk 0:00:01]}  Ne7 {[%clk 0:00:01]} 13. f3 {[%clk 0:00:01]}  b5 {[%clk 0:00:01]} 14. g4 {[%clk 0:00:01]}  Bb7 {[%clk 0:00:01]} 15. h4 {[%clk 0:00:01]}  Rc8 {[%clk 0:00:01]} 16. h5 {[%clk 0:00:01]}  Ne8 {[%clk 0:00:01]} 17. Qg3 {[%clk 0:00:01]}  Qa5 {[%clk 0:00:01]} 18. Nb3 {[%clk 0:00:01]}  Qb6 {[%clk 0:00:01]} 19. Qg1 {[%clk 0:00:01]}  Qxg1 {[%clk 0:00:01]} 20. Rxg1 {[%clk 0:00:01]}  d5 {[%clk 0:00:01]} 21. Bd3 {[%clk 0:00:01]}  Nd6 {[%clk 0:00:01]} 22. e5 {[%clk 0:00:00]}  Nc4 {[%clk 0:00:01]} 23. Bxc4 {[%clk 0:00:00]}  dxc4 {[%clk 0:00:01]} 24. Nd4 {[%clk 0:00:00]}  b4 {[%clk 0:00:00]} 25. Nce2 {[%clk 0:00:00]}  Nd5 {[%clk 0:00:00]} 26. c3 {[%clk 0:00:00]}  a5 {[%clk 0:00:00]} 27. f4 {[%clk 0:00:00]}  Rfd8 {[%clk 0:00:00]} 28. f5 {[%clk 0:00:00]}  Ne3 {[%clk 0:00:00]} 29. Rd2 {[%clk 0:00:00]}  Rd5 {[%clk 0:00:00]} 30. fxe6 {[%clk 0:00:00]}  fxe6 {[%clk 0:00:00]} 31. Nxe6 {[%clk 0:00:00]}  Rxe5 {[%clk 0:00:00]} 32. N2f4 {[%clk 0:00:00]}  Re8 {[%clk 0:00:00]} 33. Rd7 {[%clk 0:00:00]}  Bf3 {[%clk 0:00:00]} 34. Rg3 {[%clk 0:00:00]}  Bxg4 {[%clk 0:00:00]} 35. Rxg7+ {[%clk 0:00:00]}  Kh8 {[%clk 0:00:00]} 36. R7xg4 {[%clk 0:00:00]}  Nxg4 {[%clk 0:00:00]} 37. Rxg4 {[%clk 0:00:00]}  R8xe6 {[%clk 0:00:00]} 38. Nxe6 {[%clk 0:00:00]}  Rxe6 {[%clk 0:00:00]} 39. Rxc4 {[%clk 0:00:00]}  bxc3 {[%clk 0:00:00]} 40. Rxc3 {[%clk 0:00:00]}  Re5 {[%clk 0:00:00]} 41. h6 {[%clk 0:00:00]}  Kg8 {[%clk 0:00:00]} 42. Rc7 {[%clk 0:00:00]}  Rh5 {[%clk 0:00:00]} 43. Rg7+ {[%clk 0:00:00]}  Kh8 {[%clk 0:00:00]} 44. Ra7 {[%clk 0:00:00]}  Kg8 {[%clk 0:00:00]} 45. a4 {[%clk 0:00:00]}  Rc5+ {[%clk 0:00:00]} 46. Kd2 {[%clk 0:00:00]}  Rd5+ {[%clk 0:00:00]} 47. Kc3 {[%clk 0:00:00]}  Rh5 {[%clk 0:00:00]} 48. b3 {[%clk 0:00:00]}  Rh3+ {[%clk 0:00:00]} 49. Kc4 {[%clk 0:00:00]}  Rh4+ {[%clk 0:00:00]} 50. Kb5 {[%clk 0:00:00]}  Rb4+ {[%clk 0:00:00]} 51. Kxa5 {[%clk 0:00:00]}  Rxb3 {[%clk 0:00:00]} 52. Rg7+ {[%clk 0:00:00]}  Kh8 {[%clk 0:00:00]} 53. Rc7 {[%clk 0:00:00]}  Kg8 {[%clk 0:00:00]} 54. Rg7+ {[%clk 0:00:00]}  Kh8 {[%clk 0:00:00]} 55. Rc7 {[%clk 0:00:00]}  Kg8 {[%clk 0:00:00]} 56. Ka6 {[%clk 0:00:00]}  Rh3 {[%clk 0:00:00]} 57. Rc6 {[%clk 0:00:00]}  Kf7 {[%clk 0:00:00]} 58. a5 {[%clk 0:00:00]}  Rg3 {[%clk 0:00:00]} 59. Kb7 {[%clk 0:00:00]}  Rb3+ {[%clk 0:00:00]} 60. Rb6 {[%clk 0:00:00]}  Ra3 {[%clk 0:00:00]} 61. a6 {[%clk 0:00:00]}  Ra2 {[%clk 0:00:00]} 62. a7 {[%clk 0:00:00]} 1-0


[Site "https://www.chess.com"]

[Event "Titled Tuesday Blitz May 2 Early 2023"]
[White "Florescu, Codrut-Constantin"]
[Black "Fernandez Garcia, Gumersindo"]
[WhiteFideId "1202200"]
[BlackFideId "24516740"]
[WhiteElo "2191"]
[BlackElo "2093"]
[Result "0-1"]
[Round "02"]
[TimeControl "180+2"]
[Date "2023.05.02"]
[WhiteClock "0:00:23"]
[BlackClock "0:00:13"]

1. e4 {[%clk 0:02:59]}  c5 {[%clk 0:02:58]} 2. Nf3 {[%clk 0:02:58]}  g6 {[%clk 0:02:58]} 3. d4 {[%clk 0:02:58]}  cxd4 {[%clk 0:02:55]} 4. c3 {[%clk 0:02:58]}  Bg7 {[%clk 0:02:54]} 5. cxd4 {[%clk 0:02:58]}  d5 {[%clk 0:02:55]} 6. e5 {[%clk 0:02:58]}  Nc6 {[%clk 0:02:55]} 7. Nc3 {[%clk 0:02:58]}  Nh6 {[%clk 0:02:55]} 8. h3 {[%clk 0:02:57]}  O-O {[%clk 0:02:54]} 9. g4 {[%clk 0:02:56]}  f6 {[%clk 0:02:54]} 10. exf6 {[%clk 0:02:56]}  exf6 {[%clk 0:02:51]} 11. Be3 {[%clk 0:02:53]}  Nf7 {[%clk 0:02:49]} 12. Bg2 {[%clk 0:02:53]}  f5 {[%clk 0:02:44]} 13. g5 {[%clk 0:02:47]}  Be6 {[%clk 0:02:11]} 14. h4 {[%clk 0:02:44]}  Nd6 {[%clk 0:02:09]} 15. Bf4 {[%clk 0:02:37]}  Ne4 {[%clk 0:02:07]} 16. O-O {[%clk 0:02:33]}  Qb6 {[%clk 0:02:00]} 17. Na4 {[%clk 0:02:27]}  Qb4 {[%clk 0:01:52]} 18. a3 {[%clk 0:02:24]}  Qb5 {[%clk 0:01:36]} 19. Re1 {[%clk 0:02:11]}  Rfe8 {[%clk 0:01:31]} 20. Bf1 {[%clk 0:02:09]}  Qa5 {[%clk 0:01:28]} 21. b4 {[%clk 0:02:08]}  Qd8 {[%clk 0:01:26]} 22. Nc5 {[%clk 0:02:07]}  Bc8 {[%clk 0:01:10]} 23. Rc1 {[%clk 0:01:57]}  a6 {[%clk 0:01:07]} 24. Bg2 {[%clk 0:01:38]}  Qe7 {[%clk 0:01:00]} 25. Re3 {[%clk 0:01:37]}  Qf7 {[%clk 0:01:00]} 26. Rd3 {[%clk 0:01:32]}  Be6 {[%clk 0:00:55]} 27. Ne1 {[%clk 0:01:30]}  Nxc5 {[%clk 0:00:39]} 28. bxc5 {[%clk 0:01:27]}  Qd7 {[%clk 0:00:36]} 29. Nc2 {[%clk 0:01:25]}  Bf7 {[%clk 0:00:36]} 30. Rb1 {[%clk 0:01:23]}  Re7 {[%clk 0:00:26]} 31. Bd6 {[%clk 0:01:19]}  Re4 {[%clk 0:00:21]} 32. Bxe4 {[%clk 0:01:06]}  fxe4 {[%clk 0:00:22]} 33. Rdb3 {[%clk 0:00:59]}  Na5 {[%clk 0:00:22]} 34. Rg3 {[%clk 0:00:57]}  Bf8 {[%clk 0:00:20]} 35. Bxf8 {[%clk 0:00:55]}  Rxf8 {[%clk 0:00:21]} 36. Ne3 {[%clk 0:00:55]}  Be6 {[%clk 0:00:21]} 37. Qd2 {[%clk 0:00:52]}  Nc6 {[%clk 0:00:20]} 38. Qb2 {[%clk 0:00:51]}  Rf7 {[%clk 0:00:20]} 39. Qd2 {[%clk 0:00:44]}  Qc8 {[%clk 0:00:21]} 40. Rf1 {[%clk 0:00:42]}  Qf8 {[%clk 0:00:21]} 41. Kg2 {[%clk 0:00:41]}  Qg7 {[%clk 0:00:20]} 42. Nc2 {[%clk 0:00:39]}  Bf5 {[%clk 0:00:19]} 43. Qe3 {[%clk 0:00:38]}  Be6 {[%clk 0:00:19]} 44. f3 {[%clk 0:00:37]}  exf3+ {[%clk 0:00:19]} 45. Rgxf3 {[%clk 0:00:37]}  Bf5 {[%clk 0:00:20]} 46. Rxf5 {[%clk 0:00:32]}  gxf5 {[%clk 0:00:19]} 47. Qf4 {[%clk 0:00:27]}  Qf8 {[%clk 0:00:18]} 48. h5 {[%clk 0:00:26]}  Qe7 {[%clk 0:00:16]} 49. Rf2 {[%clk 0:00:26]}  Qe4+ {[%clk 0:00:15]} 50. Kg3 {[%clk 0:00:23]}  Qd3+ {[%clk 0:00:15]} 51. Kh4 {[%clk 0:00:22]}  Re7 {[%clk 0:00:13]} 52. Qxf5 {[%clk 0:00:15]}  Re4+ {[%clk 0:00:13]} 53. Rf4 {[%clk 0:00:15]}  Rxf4+ {[%clk 0:00:13]} 54. Qxf4 {[%clk 0:00:16]}  Qxc2 {[%clk 0:00:14]} 55. g6 {[%clk 0:00:14]}  Qe4 {[%clk 0:00:14]} 56. Kg5 {[%clk 0:00:15]}  Qxf4+ {[%clk 0:00:14]} 57. Kxf4 {[%clk 0:00:16]}  hxg6 {[%clk 0:00:14]} 58. hxg6 {[%clk 0:00:16]}  Nxd4 {[%clk 0:00:13]} 59. Ke5 {[%clk 0:00:17]}  Nc2 {[%clk 0:00:13]} 60. Kxd5 {[%clk 0:00:17]}  Nxa3 {[%clk 0:00:13]} 61. c6 {[%clk 0:00:18]}  bxc6+ {[%clk 0:00:10]} 62. Kxc6 {[%clk 0:00:19]}  Nb5 {[%clk 0:00:09]} 63. Kb6 {[%clk 0:00:18]}  Nc7 {[%clk 0:00:09]} 64. Kxc7 {[%clk 0:00:19]}  a5 {[%clk 0:00:10]} 65. Kd6 {[%clk 0:00:20]}  a4 {[%clk 0:00:10]} 66. Ke6 {[%clk 0:00:21]}  a3 {[%clk 0:00:11]} 67. Kf6 {[%clk 0:00:21]}  a2 {[%clk 0:00:12]} 68. Kg5 {[%clk 0:00:22]}  a1=Q {[%clk 0:00:13]} 69. Kh6 {[%clk 0:00:23]}  Qh1+ {[%clk 0:00:12]} 70. Kg5 {[%clk 0:00:23]}  Kg7 {[%clk 0:00:13]} 0-1


[Site "https://www.chess.com"]

[Event "Titled Tuesday Blitz May 2 Early 2023"]
[White "Allahverdiyeva, Ayan"]
[Black "Rakotomaharo, Fy Antenaina"]
[WhiteFideId "13412590"]
[BlackFideId "13100050"]
[WhiteElo "1980"]
[BlackElo "2427"]
[Result "0-1"]
[Round "02"]
[TimeControl "180+2"]
[Date "2023.05.02"]
[WhiteClock "0:00:09"]
[BlackClock "0:01:03"]

1. e4 {[%clk 0:03:00]}  g6 {[%clk 0:02:58]} 2. d4 {[%clk 0:02:59]}  Bg7 {[%clk 0:02:59]} 3. Nc3 {[%clk 0:02:59]}  d6 {[%clk 0:02:59]} 4. Nf3 {[%clk 0:02:58]}  Nf6 {[%clk 0:02:56]} 5. Be3 {[%clk 0:02:57]}  O-O {[%clk 0:02:55]} 6. Qd2 {[%clk 0:02:57]}  Nc6 {[%clk 0:02:54]} 7. O-O-O {[%clk 0:02:46]}  Bg4 {[%clk 0:02:54]} 8. h3 {[%clk 0:02:23]}  Bxf3 {[%clk 0:02:54]} 9. gxf3 {[%clk 0:02:24]}  e5 {[%clk 0:02:50]} 10. Ne2 {[%clk 0:02:20]}  d5 {[%clk 0:02:30]} 11. Bg2 {[%clk 0:02:00]}  Re8 {[%clk 0:02:24]} 12. dxe5 {[%clk 0:01:26]}  Nxe5 {[%clk 0:02:21]} 13. Bd4 {[%clk 0:01:00]}  Nc4 {[%clk 0:01:57]} 14. Qc3 {[%clk 0:00:59]}  c5 {[%clk 0:01:54]} 15. Bxc5 {[%clk 0:00:36]}  Nxe4 {[%clk 0:01:54]} 16. Qxc4 {[%clk 0:00:36]}  dxc4 {[%clk 0:01:43]} 17. Rxd8 {[%clk 0:00:36]}  Nxc5 {[%clk 0:01:41]} 18. Rxe8+ {[%clk 0:00:31]}  Rxe8 {[%clk 0:01:40]} 19. Nc3 {[%clk 0:00:16]}  Bxc3 {[%clk 0:01:36]} 20. bxc3 {[%clk 0:00:16]}  Na4 {[%clk 0:01:34]} 21. Rd1 {[%clk 0:00:12]}  Nxc3 {[%clk 0:01:33]} 22. Rd7 {[%clk 0:00:12]}  b5 {[%clk 0:01:25]} 23. f4 {[%clk 0:00:12]}  Re1+ {[%clk 0:01:14]} 24. Kd2 {[%clk 0:00:11]}  Rd1+ {[%clk 0:01:14]} 25. Kxc3 {[%clk 0:00:10]}  Rxd7 {[%clk 0:01:15]} 26. Bc6 {[%clk 0:00:09]}  Rd6 {[%clk 0:01:13]} 27. Bxb5 {[%clk 0:00:10]}  Rf6 {[%clk 0:01:13]} 28. Bxc4 {[%clk 0:00:11]}  Rxf4 {[%clk 0:01:13]} 29. Bd5 {[%clk 0:00:09]}  Rxf2 {[%clk 0:01:12]} 30. Kd3 {[%clk 0:00:09]}  Kf8 {[%clk 0:01:11]} 31. c4 {[%clk 0:00:10]}  Ke7 {[%clk 0:01:11]} 32. c5 {[%clk 0:00:11]}  g5 {[%clk 0:01:07]} 33. Be4 {[%clk 0:00:09]}  f5 {[%clk 0:01:03]} 0-1


[Site "https://www.chess.com"]

[Event "Titled Tuesday Blitz May 2 Early 2023"]
[White "Riff, Vincent"]
[Black "Singh, Arvinder Preet"]
[WhiteFideId "617776"]
[BlackFideId "5013240"]
[WhiteElo "2369"]
[BlackElo "2124"]
[Result "1-0"]
[Round "02"]
[TimeControl "180+2"]
[Date "2023.05.02"]
[WhiteClock "0:00:00"]
[BlackClock "0:00:00"]

1. e4 {[%clk 0:00:01]}  c5 {[%clk 0:00:01]} 2. Nf3 {[%clk 0:00:01]}  d6 {[%clk 0:00:01]} 3. d4 {[%clk 0:00:01]}  cxd4 {[%clk 0:00:01]} 4. Qxd4 {[%clk 0:00:01]}  Nc6 {[%clk 0:00:01]} 5. Bb5 {[%clk 0:00:01]}  Bd7 {[%clk 0:00:01]} 6. Bxc6 {[%clk 0:00:01]}  bxc6 {[%clk 0:00:01]} 7. c4 {[%clk 0:00:01]}  e5 {[%clk 0:00:01]} 8. Qd3 {[%clk 0:00:01]}  Nf6 {[%clk 0:00:01]} 9. Nc3 {[%clk 0:00:01]}  Be7 {[%clk 0:00:01]} 10. O-O {[%clk 0:00:01]}  O-O {[%clk 0:00:01]} 11. b3 {[%clk 0:00:01]}  h6 {[%clk 0:00:01]} 12. Ba3 {[%clk 0:00:01]}  Be6 {[%clk 0:00:01]} 13. Rfd1 {[%clk 0:00:01]}  Qa5 {[%clk 0:00:01]} 14. Bb2 {[%clk 0:00:01]}  Rfd8 {[%clk 0:00:01]} 15. h3 {[%clk 0:00:01]}  Qc7 {[%clk 0:00:01]} 16. Rac1 {[%clk 0:00:01]}  Nh5 {[%clk 0:00:01]} 17. Nd5 {[%clk 0:00:01]}  Bxd5 {[%clk 0:00:01]} 18. cxd5 {[%clk 0:00:01]}  Nf4 {[%clk 0:00:01]} 19. Qe3 {[%clk 0:00:01]}  c5 {[%clk 0:00:01]} 20. b4 {[%clk 0:00:01]}  c4 {[%clk 0:00:01]} 21. Nd4 {[%clk 0:00:01]}  Bg5 {[%clk 0:00:00]} 22. Nc6 {[%clk 0:00:01]}  Nxd5 {[%clk 0:00:00]} 23. exd5 {[%clk 0:00:01]}  Bxe3 {[%clk 0:00:00]} 24. fxe3 {[%clk 0:00:01]}  Rdc8 {[%clk 0:00:00]} 25. Rxc4 {[%clk 0:00:01]}  Qd7 {[%clk 0:00:00]} 26. Rdc1 {[%clk 0:00:01]}  f5 {[%clk 0:00:00]} 27. b5 {[%clk 0:00:01]}  Kh7 {[%clk 0:00:00]} 28. a4 {[%clk 0:00:01]}  Qb7 {[%clk 0:00:00]} 29. Ba3 {[%clk 0:00:01]}  a6 {[%clk 0:00:00]} 30. Na5 {[%clk 0:00:01]}  Rxc4 {[%clk 0:00:00]} 31. Nxb7 {[%clk 0:00:01]}  Rxc1+ {[%clk 0:00:00]} 32. Bxc1 {[%clk 0:00:01]}  axb5 {[%clk 0:00:00]} 33. a5 {[%clk 0:00:00]}  b4 {[%clk 0:00:00]} 34. Kf2 {[%clk 0:00:00]}  b3 {[%clk 0:00:00]} 35. Ke2 {[%clk 0:00:00]}  Rc8 {[%clk 0:00:00]} 36. Kd1 {[%clk 0:00:00]}  Rc2 {[%clk 0:00:00]} 37. Nxd6 {[%clk 0:00:00]}  Ra2 {[%clk 0:00:00]} 38. Nc4 {[%clk 0:00:00]}  Kg8 {[%clk 0:00:00]} 39. Ba3 {[%clk 0:00:00]}  Kf7 {[%clk 0:00:00]} 40. a6 {[%clk 0:00:00]}  b2 {[%clk 0:00:00]} 41. Kc2 {[%clk 0:00:00]}  b1=Q+ {[%clk 0:00:00]} 42. Kxb1 {[%clk 0:00:00]}  Rxg2 {[%clk 0:00:00]} 43. a7 {[%clk 0:00:00]}  Rg1+ {[%clk 0:00:00]} 44. Ka2 {[%clk 0:00:00]}  Rg2+ {[%clk 0:00:00]} 45. Bb2 {[%clk 0:00:00]}  Rg6 {[%clk 0:00:00]} 46. Nxe5+ {[%clk 0:00:00]}  Kf6 {[%clk 0:00:00]} 47. Nxg6+ {[%clk 0:00:00]}  Kxg6 {[%clk 0:00:00]} 48. a8=Q {[%clk 0:00:00]} 1-0


[Site "https://www.chess.com"]

[Event "Titled Tuesday Blitz May 2 Early 2023"]
[White "Filgueira, Hernan"]
[Black "Jimenez Fernandez, Rebeca"]
[WhiteFideId "101770"]
[BlackFideId "32070934"]
[WhiteElo "2363"]
[BlackElo "2008"]
[Result "0-1"]
[Round "02"]
[TimeControl "180+2"]
[Date "2023.05.02"]
[WhiteClock "0:00:00"]
[BlackClock "0:00:00"]

1. c4 {[%clk 0:00:01]}  e5 {[%clk 0:00:01]} 2. Nc3 {[%clk 0:00:01]}  Nc6 {[%clk 0:00:01]} 3. Nf3 {[%clk 0:00:01]}  d6 {[%clk 0:00:01]} 4. d4 {[%clk 0:00:01]}  exd4 {[%clk 0:00:01]} 5. Nxd4 {[%clk 0:00:01]}  Nf6 {[%clk 0:00:01]} 6. g3 {[%clk 0:00:01]}  g6 {[%clk 0:00:01]} 7. Bg2 {[%clk 0:00:01]}  Nxd4 {[%clk 0:00:01]} 8. Qxd4 {[%clk 0:00:01]}  Bg7 {[%clk 0:00:01]} 9. Qe3+ {[%clk 0:00:01]}  Be6 {[%clk 0:00:01]} 10. Bxb7 {[%clk 0:00:01]}  O-O {[%clk 0:00:01]} 11. Bxa8 {[%clk 0:00:01]}  Qxa8 {[%clk 0:00:01]} 12. f3 {[%clk 0:00:01]}  Re8 {[%clk 0:00:01]} 13. Qd3 {[%clk 0:00:01]}  Bf5 {[%clk 0:00:01]} 14. e4 {[%clk 0:00:01]}  Nxe4 {[%clk 0:00:00]} 15. O-O {[%clk 0:00:00]}  Nxc3 {[%clk 0:00:00]} 16. Qd1 {[%clk 0:00:00]}  Ne2+ {[%clk 0:00:00]} 17. Kg2 {[%clk 0:00:00]}  Nxc1 {[%clk 0:00:00]} 18. Rxc1 {[%clk 0:00:00]}  Bxb2 {[%clk 0:00:00]} 19. Qd2 {[%clk 0:00:00]}  Bg7 {[%clk 0:00:00]} 20. Rce1 {[%clk 0:00:00]}  Rb8 {[%clk 0:00:00]} 21. Rf2 {[%clk 0:00:00]}  Qc6 {[%clk 0:00:00]} 22. Rfe2 {[%clk 0:00:00]}  h6 {[%clk 0:00:00]} 23. Qe3 {[%clk 0:00:00]}  Qxc4 {[%clk 0:00:00]} 24. Qxa7 {[%clk 0:00:00]}  Rb5 {[%clk 0:00:00]} 25. Qa8+ {[%clk 0:00:00]}  Kh7 {[%clk 0:00:00]} 26. Qe8 {[%clk 0:00:00]}  Re5 {[%clk 0:00:00]} 27. Rxe5 {[%clk 0:00:00]}  dxe5 {[%clk 0:00:00]} 28. Qd8 {[%clk 0:00:00]}  Qxa2+ {[%clk 0:00:00]} 29. Kg1 {[%clk 0:00:00]}  Bh3 {[%clk 0:00:00]} 0-1


[Site "https://www.chess.com"]

[Event "Titled Tuesday Blitz May 2 Early 2023"]
[White "Garv Gaur"]
[Black "Deac, Bogdan-Daniel"]
[WhiteFideId "45030839"]
[BlackFideId "1226380"]
[WhiteElo "2068"]
[BlackElo "2649"]
[Result "0-1"]
[Round "02"]
[TimeControl "180+2"]
[Date "2023.05.02"]
[WhiteClock "0:00:18"]
[BlackClock "0:00:55"]

1. d4 {[%clk 0:03:00]}  f5 {[%clk 0:02:59]} 2. g3 {[%clk 0:02:58]}  g6 {[%clk 0:02:57]} 3. Bg2 {[%clk 0:02:56]}  Nf6 {[%clk 0:02:58]} 4. c3 {[%clk 0:02:55]}  Bg7 {[%clk 0:02:58]} 5. Qb3 {[%clk 0:02:55]}  c6 {[%clk 0:02:57]} 6. Nh3 {[%clk 0:02:53]}  e6 {[%clk 0:02:55]} 7. Nf4 {[%clk 0:02:52]}  O-O {[%clk 0:02:54]} 8. h4 {[%clk 0:02:52]}  Re8 {[%clk 0:02:42]} 9. O-O {[%clk 0:02:51]}  d6 {[%clk 0:02:39]} 10. Nd2 {[%clk 0:02:50]}  d5 {[%clk 0:02:33]} 11. Nf3 {[%clk 0:02:49]}  Nbd7 {[%clk 0:02:31]} 12. c4 {[%clk 0:02:42]}  Ne4 {[%clk 0:02:25]} 13. Be3 {[%clk 0:02:31]}  Nb6 {[%clk 0:02:08]} 14. c5 {[%clk 0:02:15]}  Nc4 {[%clk 0:02:06]} 15. Bc1 {[%clk 0:02:10]}  b6 {[%clk 0:01:57]} 16. cxb6 {[%clk 0:02:08]}  axb6 {[%clk 0:01:58]} 17. Qc2 {[%clk 0:02:07]}  c5 {[%clk 0:01:57]} 18. Rd1 {[%clk 0:00:58]}  Bb7 {[%clk 0:01:30]} 19. dxc5 {[%clk 0:00:54]}  bxc5 {[%clk 0:01:27]} 20. Ng5 {[%clk 0:00:47]}  Nxg5 {[%clk 0:01:23]} 21. hxg5 {[%clk 0:00:48]}  Qb6 {[%clk 0:01:22]} 22. Rxd5 {[%clk 0:00:25]}  Na3 {[%clk 0:00:56]} 23. bxa3 {[%clk 0:00:20]}  Bxa1 {[%clk 0:00:56]} 24. Rd7 {[%clk 0:00:18]}  Bxg2 {[%clk 0:00:55]} 25. Kxg2 {[%clk 0:00:18]}  Qc6+ {[%clk 0:00:55]} 0-1


[Site "https://www.chess.com"]

[Event "Titled Tuesday Blitz May 2 Early 2023"]
[White "Dardha, Daniel"]
[Black "Bilan, Danila"]
[WhiteFideId "240990"]
[BlackFideId "24161918"]
[WhiteElo "2581"]
[BlackElo "2182"]
[Result "1-0"]
[Round "02"]
[TimeControl "180+2"]
[Date "2023.05.02"]
[WhiteClock "0:01:10"]
[BlackClock "0:00:02"]

1. d4 {[%clk 0:03:00]}  d5 {[%clk 0:02:59]} 2. Qd3 {[%clk 0:03:00]}  Nf6 {[%clk 0:02:54]} 3. c4 {[%clk 0:03:00]}  c6 {[%clk 0:02:49]} 4. Nf3 {[%clk 0:02:59]}  g6 {[%clk 0:02:45]} 5. Bf4 {[%clk 0:02:56]}  Bg7 {[%clk 0:02:45]} 6. e3 {[%clk 0:02:48]}  O-O {[%clk 0:02:38]} 7. Be2 {[%clk 0:02:48]}  Bf5 {[%clk 0:02:28]} 8. Qb3 {[%clk 0:02:45]}  Qb6 {[%clk 0:02:18]} 9. Nc3 {[%clk 0:02:31]}  dxc4 {[%clk 0:02:11]} 10. Bxc4 {[%clk 0:02:27]}  Nbd7 {[%clk 0:02:02]} 11. O-O {[%clk 0:02:26]}  c5 {[%clk 0:01:37]} 12. d5 {[%clk 0:01:45]}  Qxb3 {[%clk 0:00:57]} 13. axb3 {[%clk 0:01:43]}  Nb6 {[%clk 0:00:52]} 14. Nd2 {[%clk 0:01:36]}  Nxc4 {[%clk 0:00:42]} 15. bxc4 {[%clk 0:01:36]}  Bd3 {[%clk 0:00:35]} 16. Rfc1 {[%clk 0:01:34]}  Nd7 {[%clk 0:00:31]} 17. e4 {[%clk 0:01:30]}  f5 {[%clk 0:00:26]} 18. exf5 {[%clk 0:01:26]}  Rxf5 {[%clk 0:00:24]} 19. Be3 {[%clk 0:01:26]}  a6 {[%clk 0:00:17]} 20. Ra3 {[%clk 0:01:26]}  Ne5 {[%clk 0:00:10]} 21. Na4 {[%clk 0:01:22]}  Be2 {[%clk 0:00:02]} 22. Nxc5 {[%clk 0:01:21]}  b6 {[%clk 0:00:02]} 23. Na4 {[%clk 0:01:21]}  Nd3 {[%clk 0:00:02]} 24. Rb1 {[%clk 0:01:19]}  Raf8 {[%clk 0:00:02]} 25. f3 {[%clk 0:01:18]}  b5 {[%clk 0:00:02]} 26. Nc5 {[%clk 0:01:10]}  b4 {[%clk 0:00:02]} 27. Rxd3 {[%clk 0:01:10]}  Bxd3 {[%clk 0:00:02]} 28. Nxd3 {[%clk 0:01:11]}  a5 {[%clk 0:00:01]} 29. Ra1 {[%clk 0:01:11]}  Ra8 {[%clk 0:00:01]} 30. Ra4 {[%clk 0:01:11]}  g5 {[%clk 0:00:01]} 31. h3 {[%clk 0:01:11]}  Kf7 {[%clk 0:00:02]} 32. g4 {[%clk 0:01:11]}  Rf6 {[%clk 0:00:02]} 33. Bxg5 {[%clk 0:01:11]}  Rfa6 {[%clk 0:00:02]} 34. b3 {[%clk 0:01:09]}  Bd4+ {[%clk 0:00:02]} 35. Kg2 {[%clk 0:01:09]}  h5 {[%clk 0:00:03]} 36. Ne4 {[%clk 0:01:09]}  hxg4 {[%clk 0:00:03]} 37. hxg4 {[%clk 0:01:10]}  e6 {[%clk 0:00:02]} 38. d6 {[%clk 0:01:10]}  e5 {[%clk 0:00:02]} 39. d7 {[%clk 0:01:10]} 1-0


[Site "https://www.chess.com"]